Workbook

Sheet 产品目录
C1: 产品目录
B2: 产品编号 | D2: 产品名称
B4: MM0801-A | D4: A产品
B6: MM0801-B | D6: B产品
B8: MM0801-C | D8: C产品
B10: MM0801-D | D10: D产品
B12: MM0801-E | D12: E产品
B14: MM0801-F | D14: F产品

Sheet A产品
A1: 返回
A2: A产品1月存货记录
A3: 产品编号:MM0801-A | J3: 计量单位:件
A4: 日期 | B4: 摘要 | C4: 收入 | F4: 发出 | I4: 结存
C5: 数量 | D5: 单价 | E5: 金额 | F5: 数量 | G5: 单价 | H5: 金额 | I5: 数量 | J5: 单价 | K5: 金额
A6: 2008-01-05 | B6: 期初余额 | I6: 248 | J6: 150 | K6: =I6*J6 -> 37200
A7: 2008-01-07 | B7: 购入 | C7: 450 | D7: 69.5 | E7: =C7*D7 -> 31275 | I7: =SUM(I6,C7)-F7 -> 698 | J7: =TRUNC(K7/I7,2) -> 98.1 | K7: =SUM(K6,E7)-H7 -> 68475
A8: 2008-01-03 | B8: 发出 | F8: 320 | G8: =J7 -> 98.1 | H8: =F8*G8 -> 31392 | I8: =SUM(I7,C8)-F8 -> 378 | J8: =TRUNC(K8/I8,2) -> 98.1 | K8: =SUM(K7,E8)-H8 -> 37083
A9: 2008-01-10 | B9: 购入 | C9: 315 | D9: 108 | E9: =C9*D9 -> 34020 | I9: 693 | J9: 102.6 | K9: 71103
A10: 2008-01-12 | B10: 发出 | F10: 430 | G10: =J9 -> 102.6 | H10: =F10*G10 -> 44118 | I10: 263 | J10: 102.6 | K10: 26985
A11: 2008-01-15 | B11: 购入 | C11: 289 | D11: 125 | E11: =C11*D11 -> 36125 | I11: 552 | J11: 114.32 | K11: 63110
A12: 2008-01-17 | B12: 发出 | F12: 280 | G12: 114.32 | H12: 32009.6 | I12: 272 | J12: 114.33 | K12: 31100.4
A13: 2008-01-21 | B13: 购入 | C13: 260 | D13: 158 | E13: =C13*D13 -> 41080 | I13: 532 | J13: 135.67 | K13: 72180.4
A14: 2008-01-24 | B14: 发出 | F14: 267 | G14: 135.67 | H14: 36223.89 | I14: 265 | J14: 135.68 | K14: 35956.51
A15: 2008-01-27 | B15: 购入 | C15: 190 | D15: 86 | E15: =C15*D15 -> 16340 | I15: 455 | J15: 114.93 | K15: 52296.51
A16: 2008-01-29 | B16: 发出 | F16: 240 | G16: 114.93 | H16: 27583.2 | I16: 215 | J16: 114.94 | K16: 24713.31
A17: 2008-01-31 | B17: 月末结余 | C17: =SUM(C7:C16) -> 1504 | E17: =SUM(E7:E16) -> 158840 | F17: =SUM(F7:F16) -> 1537 | H17: =SUM(H7:H16) -> 171326.69 | I17: 215 | J17: 114.94 | K17: 24713.31

Sheet B产品
A1: B产品1月存货记录
A2: 产品编号:MM0801-B | J2: 计量单位:件
A3: 日期 | B3: 摘要 | C3: 收入 | F3: 发出 | I3: 结存
C4: 数量 | D4: 单价 | E4: 金额 | F4: 数量 | G4: 单价 | H4: 金额 | I4: 数量 | J4: 单价 | K4: 金额
A5: 2008-01-05 | B5: 期初余额 | I5: 248 | J5: 150 | K5: =I5*J5 -> 37200
A6: 2008-01-07 | B6: 购入 | C6: 450 | D6: 69.5 | E6: =C6*D6 -> 31275 | I6: =SUM(I5,C6)-F6 -> 698 | J6: =TRUNC(K6/I6,2) -> 98.1 | K6: =SUM(K5,E6)-H6 -> 68475
A7: 2008-01-03 | B7: 发出 | F7: 320 | G7: =J6 -> 98.1 | H7: =F7*G7 -> 31392 | I7: =SUM(I6,C7)-F7 -> 378 | J7: =TRUNC(K7/I7,2) -> 98.1 | K7: =SUM(K6,E7)-H7 -> 37083
A8: 2008-01-10 | B8: 购入 | C8: 315 | D8: 108 | E8: =C8*D8 -> 34020 | I8: 693 | J8: 102.6 | K8: 71103
A9: 2008-01-12 | B9: 发出 | F9: 430 | G9: =J8 -> 102.6 | H9: =F9*G9 -> 44118 | I9: 263 | J9: 102.6 | K9: 26985
A10: 2008-01-15 | B10: 购入 | C10: 289 | D10: 125 | E10: =C10*D10 -> 36125 | I10: 552 | J10: 114.32 | K10: 63110
A11: 2008-01-17 | B11: 发出 | F11: 280 | G11: 114.32 | H11: 32009.6 | I11: 272 | J11: 114.33 | K11: 31100.4
A12: 2008-01-21 | B12: 购入 | C12: 260 | D12: 158 | E12: =C12*D12 -> 41080 | I12: 532 | J12: 135.67 | K12: 72180.4
A13: 2008-01-24 | B13: 发出 | F13: 267 | G13: 135.67 | H13: 36223.89 | I13: 265 | J13: 135.68 | K13: 35956.51
A14: 2008-01-27 | B14: 购入 | C14: 190 | D14: 86 | E14: =C14*D14 -> 16340 | I14: 455 | J14: 114.93 | K14: 52296.51
A15: 2008-01-29 | B15: 发出 | F15: 240 | G15: 114.93 | H15: 27583.2 | I15: 215 | J15: 114.94 | K15: 24713.31
A16: 2008-01-31 | B16: 月末结余 | C16: =SUM(C6:C15) -> 1504 | E16: =SUM(E6:E15) -> 158840 | F16: =SUM(F6:F15) -> 1537 | H16: =SUM(H6:H15) -> 171326.69 | I16: 215 | J16: 114.94 | K16: 24713.31

Sheet C产品
A1: C产品1月存货记录
A2: 产品编号:MM0801-C | J2: 计量单位:件
A3: 日期 | B3: 摘要 | C3: 收入 | F3: 发出 | I3: 结存
C4: 数量 | D4: 单价 | E4: 金额 | F4: 数量 | G4: 单价 | H4: 金额 | I4: 数量 | J4: 单价 | K4: 金额
A5: 2008-01-05 | B5: 期初余额 | I5: 248 | J5: 150 | K5: =I5*J5 -> 37200
A6: 2008-01-07 | B6: 购入 | C6: 450 | D6: 69.5 | E6: =C6*D6 -> 31275 | I6: =SUM(I5,C6)-F6 -> 698 | J6: =TRUNC(K6/I6,2) -> 98.1 | K6: =SUM(K5,E6)-H6 -> 68475
A7: 2008-01-03 | B7: 发出 | F7: 320 | G7: =J6 -> 98.1 | H7: =F7*G7 -> 31392 | I7: =SUM(I6,C7)-F7 -> 378 | J7: =TRUNC(K7/I7,2) -> 98.1 | K7: =SUM(K6,E7)-H7 -> 37083
A8: 2008-01-10 | B8: 购入 | C8: 315 | D8: 108 | E8: =C8*D8 -> 34020 | I8: 693 | J8: 102.6 | K8: 71103
A9: 2008-01-12 | B9: 发出 | F9: 430 | G9: =J8 -> 102.6 | H9: =F9*G9 -> 44118 | I9: 263 | J9: 102.6 | K9: 26985
A10: 2008-01-15 | B10: 购入 | C10: 289 | D10: 125 | E10: =C10*D10 -> 36125 | I10: 552 | J10: 114.32 | K10: 63110
A11: 2008-01-17 | B11: 发出 | F11: 280 | G11: 114.32 | H11: 32009.6 | I11: 272 | J11: 114.33 | K11: 31100.4
A12: 2008-01-21 | B12: 购入 | C12: 260 | D12: 158 | E12: =C12*D12 -> 41080 | I12: 532 | J12: 135.67 | K12: 72180.4
A13: 2008-01-24 | B13: 发出 | F13: 267 | G13: 135.67 | H13: 36223.89 | I13: 265 | J13: 135.68 | K13: 35956.51
A14: 2008-01-27 | B14: 购入 | C14: 190 | D14: 86 | E14: =C14*D14 -> 16340 | I14: 455 | J14: 114.93 | K14: 52296.51
A15: 2008-01-29 | B15: 发出 | F15: 240 | G15: 114.93 | H15: 27583.2 | I15: 215 | J15: 114.94 | K15: 24713.31
A16: 2008-01-31 | B16: 月末结余 | C16: =SUM(C6:C15) -> 1504 | E16: =SUM(E6:E15) -> 158840 | F16: =SUM(F6:F15) -> 1537 | H16: =SUM(H6:H15) -> 171326.69 | I16: 215 | J16: 114.94 | K16: 24713.31

Sheet D产品
A1: D产品1月存货记录
A2: 产品编号:MM0801-D | J2: 计量单位:件
A3: 日期 | B3: 摘要 | C3: 收入 | F3: 发出 | I3: 结存
C4: 数量 | D4: 单价 | E4: 金额 | F4: 数量 | G4: 单价 | H4: 金额 | I4: 数量 | J4: 单价 | K4: 金额
A5: 2008-01-05 | B5: 期初余额 | I5: 248 | J5: 150 | K5: =I5*J5 -> 37200
A6: 2008-01-07 | B6: 购入 | C6: 450 | D6: 69.5 | E6: =C6*D6 -> 31275 | I6: =SUM(I5,C6)-F6 -> 698 | J6: =TRUNC(K6/I6,2) -> 98.1 | K6: =SUM(K5,E6)-H6 -> 68475
A7: 2008-01-03 | B7: 发出 | F7: 320 | G7: =J6 -> 98.1 | H7: =F7*G7 -> 31392 | I7: =SUM(I6,C7)-F7 -> 378 | J7: =TRUNC(K7/I7,2) -> 98.1 | K7: =SUM(K6,E7)-H7 -> 37083
A8: 2008-01-10 | B8: 购入 | C8: 315 | D8: 108 | E8: =C8*D8 -> 34020 | I8: 693 | J8: 102.6 | K8: 71103
A9: 2008-01-12 | B9: 发出 | F9: 430 | G9: =J8 -> 102.6 | H9: =F9*G9 -> 44118 | I9: 263 | J9: 102.6 | K9: 26985
A10: 2008-01-15 | B10: 购入 | C10: 289 | D10: 125 | E10: =C10*D10 -> 36125 | I10: 552 | J10: 114.32 | K10: 63110
A11: 2008-01-17 | B11: 发出 | F11: 280 | G11: 114.32 | H11: 32009.6 | I11: 272 | J11: 114.33 | K11: 31100.4
A12: 2008-01-21 | B12: 购入 | C12: 260 | D12: 158 | E12: =C12*D12 -> 41080 | I12: 532 | J12: 135.67 | K12: 72180.4
A13: 2008-01-24 | B13: 发出 | F13: 267 | G13: 135.67 | H13: 36223.89 | I13: 265 | J13: 135.68 | K13: 35956.51
A14: 2008-01-27 | B14: 购入 | C14: 190 | D14: 86 | E14: =C14*D14 -> 16340 | I14: 455 | J14: 114.93 | K14: 52296.51
A15: 2008-01-29 | B15: 发出 | F15: 240 | G15: 114.93 | H15: 27583.2 | I15: 215 | J15: 114.94 | K15: 24713.31
A16: 2008-01-31 | B16: 月末结余 | C16: =SUM(C6:C15) -> 1504 | E16: =SUM(E6:E15) -> 158840 | F16: =SUM(F6:F15) -> 1537 | H16: =SUM(H6:H15) -> 171326.69 | I16: 215 | J16: 114.94 | K16: 24713.31

Sheet E产品
A1: E产品1月存货记录
A2: 产品编号:MM0801-E | J2: 计量单位:件
A3: 日期 | B3: 摘要 | C3: 收入 | F3: 发出 | I3: 结存
C4: 数量 | D4: 单价 | E4: 金额 | F4: 数量 | G4: 单价 | H4: 金额 | I4: 数量 | J4: 单价 | K4: 金额
A5: 2008-01-05 | B5: 期初余额 | I5: 248 | J5: 150 | K5: =I5*J5 -> 37200
A6: 2008-01-07 | B6: 购入 | C6: 450 | D6: 69.5 | E6: =C6*D6 -> 31275 | I6: =SUM(I5,C6)-F6 -> 698 | J6: =TRUNC(K6/I6,2) -> 98.1 | K6: =SUM(K5,E6)-H6 -> 68475
A7: 2008-01-03 | B7: 发出 | F7: 320 | G7: =J6 -> 98.1 | H7: =F7*G7 -> 31392 | I7: =SUM(I6,C7)-F7 -> 378 | J7: =TRUNC(K7/I7,2) -> 98.1 | K7: =SUM(K6,E7)-H7 -> 37083
A8: 2008-01-10 | B8: 购入 | C8: 315 | D8: 108 | E8: =C8*D8 -> 34020 | I8: 693 | J8: 102.6 | K8: 71103
A9: 2008-01-12 | B9: 发出 | F9: 430 | G9: =J8 -> 102.6 | H9: =F9*G9 -> 44118 | I9: 263 | J9: 102.6 | K9: 26985
A10: 2008-01-15 | B10: 购入 | C10: 289 | D10: 125 | E10: =C10*D10 -> 36125 | I10: 552 | J10: 114.32 | K10: 63110
A11: 2008-01-17 | B11: 发出 | F11: 280 | G11: 114.32 | H11: 32009.6 | I11: 272 | J11: 114.33 | K11: 31100.4
A12: 2008-01-21 | B12: 购入 | C12: 260 | D12: 158 | E12: =C12*D12 -> 41080 | I12: 532 | J12: 135.67 | K12: 72180.4
A13: 2008-01-24 | B13: 发出 | F13: 267 | G13: 135.67 | H13: 36223.89 | I13: 265 | J13: 135.68 | K13: 35956.51
A14: 2008-01-27 | B14: 购入 | C14: 190 | D14: 86 | E14: =C14*D14 -> 16340 | I14: 455 | J14: 114.93 | K14: 52296.51
A15: 2008-01-29 | B15: 发出 | F15: 240 | G15: 114.93 | H15: 27583.2 | I15: 215 | J15: 114.94 | K15: 24713.31
A16: 2008-01-31 | B16: 月末结余 | C16: =SUM(C6:C15) -> 1504 | E16: =SUM(E6:E15) -> 158840 | F16: =SUM(F6:F15) -> 1537 | H16: =SUM(H6:H15) -> 171326.69 | I16: 215 | J16: 114.94 | K16: 24713.31

Sheet F产品
A1: F产品1月存货记录
A2: 产品编号:MM0801-F | J2: 计量单位:件
A3: 日期 | B3: 摘要 | C3: 收入 | F3: 发出 | I3: 结存
C4: 数量 | D4: 单价 | E4: 金额 | F4: 数量 | G4: 单价 | H4: 金额 | I4: 数量 | J4: 单价 | K4: 金额
A5: 2008-01-05 | B5: 期初余额 | I5: 248 | J5: 150 | K5: =I5*J5 -> 37200
A6: 2008-01-07 | B6: 购入 | C6: 450 | D6: 69.5 | E6: =C6*D6 -> 31275 | I6: =SUM(I5,C6)-F6 -> 698 | J6: =TRUNC(K6/I6,2) -> 98.1 | K6: =SUM(K5,E6)-H6 -> 68475
A7: 2008-01-03 | B7: 发出 | F7: 320 | G7: =J6 -> 98.1 | H7: =F7*G7 -> 31392 | I7: =SUM(I6,C7)-F7 -> 378 | J7: =TRUNC(K7/I7,2) -> 98.1 | K7: =SUM(K6,E7)-H7 -> 37083
A8: 2008-01-10 | B8: 购入 | C8: 315 | D8: 108 | E8: =C8*D8 -> 34020 | I8: 693 | J8: 102.6 | K8: 71103
A9: 2008-01-12 | B9: 发出 | F9: 430 | G9: =J8 -> 102.6 | H9: =F9*G9 -> 44118 | I9: 263 | J9: 102.6 | K9: 26985
A10: 2008-01-15 | B10: 购入 | C10: 289 | D10: 125 | E10: =C10*D10 -> 36125 | I10: 552 | J10: 114.32 | K10: 63110
A11: 2008-01-17 | B11: 发出 | F11: 280 | G11: 114.32 | H11: 32009.6 | I11: 272 | J11: 114.33 | K11: 31100.4
A12: 2008-01-21 | B12: 购入 | C12: 260 | D12: 158 | E12: =C12*D12 -> 41080 | I12: 532 | J12: 135.67 | K12: 72180.4
A13: 2008-01-24 | B13: 发出 | F13: 267 | G13: 135.67 | H13: 36223.89 | I13: 265 | J13: 135.68 | K13: 35956.51
A14: 2008-01-27 | B14: 购入 | C14: 190 | D14: 86 | E14: =C14*D14 -> 16340 | I14: 455 | J14: 114.93 | K14: 52296.51
A15: 2008-01-29 | B15: 发出 | F15: 240 | G15: 114.93 | H15: 27583.2 | I15: 215 | J15: 114.94 | K15: 24713.31
A16: 2008-01-31 | B16: 月末结余 | C16: =SUM(C6:C15) -> 1504 | E16: =SUM(E6:E15) -> 158840 | F16: =SUM(F6:F15) -> 1537 | H16: =SUM(H6:H15) -> 171326.69 | I16: 215 | J16: 114.94 | K16: 24713.31
